bitfinex-derivatives/quotes_ETHF0:USTF0_20260121
["timestamp","ask_amount","ask_price","bid_price","bid_amount"]
[1768997422000,0.17031,2939.2,2937.2,1.57968041]
[1768997422722,1.59935624,2939.3,2937.9,0.00510291]
[1768997422723,0.9286,2939.1,2937.9,0.00510291]
[1768997429515,0.00510291,2939.6,2937.9,1.58478332]
[1768997430613,1.60445915,2939.6,2937.9,0.00510291]
[1768997431409,1.59935624,2939.4,2937.9,0.00510291]
[1768997431611,0.17031,2939.2,2937.9,0.00510291]
[1768997431818,1.59935624,2939.4,2937.9,0.00510291]
[1768997432315,0.98459717,2939.3,2937.9,0.00510291]
[1768997432515,0.671,2939.3,2937.9,0.00510291]
[1768997433415,0.00510291,2939.6,2937.9,1.58478332]
[1768997434519,0.00510291,2939.6,2938.2,1.75004041]
[1768997435414,0.00510291,2939.6,2937.2,4.65718354]
[1768997435415,1.59935624,2938.2,2937.2,0.00260597]
[1768997435720,0.17038,2937.9,2936.1,1.57968041]
[1768997435914,1.00278666,2937.8,2936.1,1.57968041]
[1768997436120,0.17038,2937.9,2936.1,1.57968041]
[1768997436621,1.59935624,2937.5,2936.3,0.87266997]
[1768997436919,1.59935624,2937.1,2935.1,1.57968041]
[1768997437421,0.17044,2936.9,2935.1,1.57968041]
[1768997437813,0.17044,2936.9,2935.1,1.58397739]
[1768997438013,1.59935624,2937.1,2935.1,1.58397739]
[1768997438314,1.59935624,2937.1,2935.7,0.00510291]
[1768997438315,0.17044,2936.9,2935.7,0.00510291]
[1768997438515,1.76979624,2936.9,2935.7,0.00510291]
[1768997439313,1.76979624,2936.9,2933.8,0.27752386]
[1768997439314,1.59935624,2935.3,2933.0,1.57968041]
[1768997439515,1.76989624,2935.1,2933.0,1.57968041]
[1768997439712,1.78891115,2936.4,2932.0,0.27642156]
[1768997439713,1.76995624,2934.2,2932.1,1.57968041]
[1768997440031,4.65457757,2935.9,2932.1,1.57968041]
[1768997440032,0.17057,2934.6,2932.4,1.57968041]
[1768997440320,0.00279166,2934.6,2932.4,1.58219392]
[1768997440508,0.00279166,2934.6,2933.2,0.00511204]
[1768997441319,1.7727179,2934.6,2933.2,0.00511204]
[1768997441708,0.00279166,2934.6,2933.2,0.00511204]
[1768997441907,0.00511204,2934.2,2933.2,0.00511204]
[1768997442320,0.00279166,2934.6,2933.2,0.00511204]
[1768997442623,0.00279166,2934.6,2933.2,1.58479245]
[1768997442823,0.00279166,2934.6,2933.2,0.00511204]
[1768997445823,0.00279166,2934.6,2933.2,1.60684798]
[1768997446414,0.00511204,2934.2,2933.2,1.60684798]
[1768997447625,0.00279166,2934.6,2933.2,1.60684798]
[1768997448015,0.17054,2935.2,2933.2,1.60684798]
[1768997448224,0.17052,2935.6,2933.2,1.60684798]
[1768997448522,0.00511204,2934.7,2933.2,1.60684798]
[1768997449022,0.00934531,2934.7,2933.2,1.60684798]
[1768997449426,0.17053,2935.4,2933.2,1.60684798]
[1768997450520,0.17346902,2935.4,2933.2,1.60684798]
[1768997451225,0.17054,2935.3,2933.2,1.60684798]
[1768997452025,0.17054,2935.3,2933.2,1.77749798]
[1768997452628,0.17054,2935.3,2933.4,1.60173594]
[1768997453428,0.00293902,2935.4,2933.6,1.60173594]
[1768997453628,0.00293902,2935.4,2933.8,1.60173594]
[1768997455927,0.00293902,2935.4,2933.3,1.60173594]
[1768997455928,1.73236611,2935.1,2933.3,1.60173594]
[1768997456738,0.17055,2934.9,2933.3,1.60173594]
[1768997456927,1.73236611,2934.9,2933.2,0.00511204]
[1768997457233,0.17058,2934.5,2933.2,0.00511204]
[1768997457431,0.1706,2934.2,2933.2,0.00511204]
[1768997457632,0.00509982,2934.1,2933.2,0.00511204]
[1768997459836,0.17569982,2934.1,2933.2,0.00511204]
[1768997460041,1.6570052,2933.9,2932.0,40.8]
[1768997460233,0.17062,2933.8,2932.0,40.8]
[1768997460734,0.00509982,2934.1,2932.5,0.17069]
[1768997460935,0.00509982,2934.1,2932.6,1.6742919]
[1768997461142,0.00509982,2934.1,2933.0,0.00511204]
[1768997461533,1.83047422,2935.4,2933.0,1.67940394]
[1768997461738,0.17053,2935.3,2933.4,1.6742919]
[1768997462138,1.65994422,2935.4,2933.4,1.8449319]
[1768997462340,0.00293902,2935.4,2933.6,1.6742919]
[1768997462643,0.00293902,2935.4,2933.8,1.6742919]
[1768997464042,0.00293902,2935.4,2933.7,40.8]
[1768997464340,0.00293902,2935.4,2934.1,1.6742919]
[1768997465749,1.6570052,2936.5,2934.1,1.6742919]
[1768997466043,1.6570052,2935.3,2933.2,1.8449419]
[1768997466445,1.6570052,2935.3,2933.3,40.8]
[1768997466743,1.66093625,2935.3,2933.3,40.8]
[1768997466936,1.66093625,2935.3,2933.3,42.4742919]
[1768997467136,0.99941319,2935.2,2933.3,42.4742919]
[1768997467333,1.66093625,2935.3,2934.0,0.00511204]
[1768997467539,1.00005631,2935.2,2934.0,0.00511204]
[1768997467735,1.66093625,2935.3,2934.0,0.00511204]
[1768997467936,1.0000546,2935.2,2934.0,0.00511204]
[1768997468247,1.66093625,2935.3,2934.0,0.00511204]
[1768997468248,1.00097281,2935.1,2934.0,0.00511204]
[1768997468447,1.66093625,2935.3,2934.0,0.00511204]
[1768997468646,2.65797523,2935.2,2934.0,0.00511204]
[1768997468846,1.00097003,2935.1,2934.0,0.00511204]
[1768997469047,1.6570052,2935.2,2934.0,0.00511204]
[1768997469242,0.00393105,2935.3,2934.0,1.67940394]
[1768997470943,0.00393105,2935.3,2934.0,0.00511204]
[1768997471247,1.00206732,2935.2,2934.0,0.00511204]
[1768997471544,0.00393105,2935.3,2934.0,0.00511204]
[1768997471745,1.00220804,2935.2,2934.0,0.00511204]
[1768997471946,0.00393105,2935.3,2934.0,0.00511204]
[1768997472244,1.00220282,2935.2,2934.0,0.00511204]
[1768997472440,0.00393105,2935.3,2934.0,0.00511204]
[1768997472743,2.6593126,2935.2,2934.0,0.00511204]
[1768997472943,1.0023074,2935.1,2934.0,0.00511204]
[1768997473143,1.0023074,2935.0,2934.0,0.00511204]
[1768997473343,1.0023074,2934.9,2934.0,0.00511204]
[1768997473645,1.0023074,2934.8,2934.0,0.00511204]
[1768997473942,0.17055,2935.0,2934.0,0.00511204]
[1768997474247,1.00225486,2934.9,2934.0,0.00511204]
[1768997474439,1.00225486,2934.8,2934.0,0.00511204]
[1768997474640,0.17055,2935.0,2934.0,0.00511204]
[1768997474835,1.00233908,2934.9,2934.0,0.00511204]
[1768997475045,1.00233908,2934.8,2934.0,0.00511204]
[1768997475237,1.18110936,2935.3,2934.0,0.00511204]
[1768997475442,0.00393105,2935.3,2934.0,1.67280152]
[1768997476950,0.00393105,2935.3,2934.0,1.84340152]
[1768997477848,0.00511204,2934.9,2934.0,1.84340152]
[1768997478153,0.00393105,2935.3,2934.0,1.84340152]
[1768997480046,0.00511204,2934.9,2934.0,1.84340152]
[1768997480249,0.00393105,2935.3,2934.0,1.84340152]
[1768997480449,0.00393105,2935.3,2934.3,1.66768948]
[1768997480652,1.17717831,2936.0,2934.3,1.66768948]
[1768997480847,1.00161094,2935.9,2934.3,1.66768948]
[1768997481153,1.00161094,2935.8,2934.3,1.66768948]
[1768997481352,1.75833096,2936.1,2934.3,1.66768948]
[1768997481540,1.0637,2935.8,2934.3,1.66768948]
[1768997481745,1.0637,2935.8,2934.3,1.83827948]
[1768997483053,1.0637,2935.8,2934.4,1.83826948]
[1768997483255,0.00305712,2936.1,2934.7,1.83824948]
[1768997483450,1.76138808,2936.1,2934.7,0.00309966]
[1768997483658,2.75877876,2936.0,2934.7,0.00309966]
[1768997483849,1.0004478,2935.9,2934.7,0.00309966]
[1768997484058,1.92882096,2936.0,2934.7,0.00309966]
[1768997484556,1.00025449,2935.9,2934.7,0.00309966]
[1768997484853,1.92882096,2936.0,2934.7,0.00309966]
[1768997485055,1.00025892,2935.9,2934.7,0.00309966]
[1768997485257,1.92882096,2936.0,2934.7,0.00309966]
[1768997485553,0.99873071,2935.9,2934.7,0.00309966]
[1768997485754,1.75833096,2935.7,2934.0,0.00511204]
[1768997485950,1.75833096,2935.2,2934.0,0.00511204]
[1768997486856,1.75833096,2935.0,2934.0,0.00948945]
[1768997487653,2.75679144,2934.9,2934.0,0.00948945]
[1768997487853,2.75679144,2934.9,2932.8,0.17068]
[1768997487854,1.75833096,2934.7,2932.8,0.17068]
[1768997488755,1.75833096,2934.7,2932.8,1.84263379]
[1768997489354,0.17056,2934.9,2932.8,1.84263379]
[1768997489656,0.9991118,2934.8,2932.8,1.84263379]
[1768997489855,0.17056,2934.9,2932.8,1.84263379]
[1768997490062,0.99911756,2934.8,2932.9,1.66768948]
[1768997490255,1.92889096,2934.9,2932.9,1.66768948]
[1768997490453,1.75833096,2934.7,2932.9,1.66768948]
[1768997490653,1.92889096,2934.9,2932.9,3.09425399]
[1768997490854,1.75833096,2934.7,2932.9,1.83835948]
[1768997491155,1.75833096,2934.5,2932.8,0.00426431]
[1768997491549,0.99891638,2934.4,2932.8,0.00426431]
[1768997491754,0.17058,2934.5,2932.8,0.00426431]
[1768997491755,2.75721939,2934.3,2932.8,0.00426431]
[1768997491955,1.75833096,2934.3,2932.8,0.00426431]
[1768997492756,1.75833096,2933.8,2932.8,0.00426431]
[1768997492956,1.76102566,2933.8,2932.8,0.00426431]
[1768997493459,1.75833096,2933.6,2931.9,0.23905549]
[1768997493774,0.17074,2931.8,2930.4,0.2]
[1768997494065,1.75833096,2932.7,2930.8,0.00511204]
[1768997494359,0.00511204,2932.0,2930.8,0.00511204]
[1768997494554,0.00511204,2932.0,2930.8,0.00823145]
[1768997494754,1.75833096,2933.3,2931.2,1.66768948]
[1768997495566,1.75833096,2933.3,2930.8,1.67592093]
[1768997496664,1.75833096,2933.3,2931.1,1.66768948]
[1768997496862,1.76102566,2933.8,2932.0,1.25589451]
[1768997497060,1.76102566,2933.8,2932.0,2.92358399]
[1768997497559,1.76102566,2933.8,2932.6,0.00511204]
[1768997500563,1.76102566,2933.8,2931.2,1.83845948]
[1768997500763,1.76102566,2933.8,2928.8,1.66768948]
[1768997500764,1.75833096,2931.9,2928.8,1.66768948]
[1768997500966,1.75833096,2931.9,2928.1,12.16717412]
[1768997500967,1.75833096,2931.0,2928.4,1.25589451]
[1768997501165,1.75833096,2931.0,2928.5,1.66768948]
[1768997501467,1.75833096,2931.0,2928.6,40.8]
[1768997501661,0.17081,2930.6,2928.6,40.8]
[1768997501868,0.17081,2930.6,2924.8,6.68314403]
[1768997501869,1.75833096,2929.2,2926.8,1.66768948]
[1768997502064,1.75833096,2929.8,2928.2,1.25589451]
[1768997502261,0.00336232,2930.6,2927.4,1.66768948]
[1768997502262,1.75833096,2929.6,2927.4,1.66768948]
[1768997502563,0.00336232,2930.6,2928.4,1.25589451]
[1768997502758,0.17082,2930.4,2928.4,1.66768948]
[1768997502967,1.92915096,2930.4,2929.2,0.00512084]
[1768997503770,0.00512084,2930.1,2929.2,0.00512084]
[1768997503971,0.17085,2929.9,2928.4,0.00250521]
[1768997504163,1.75833096,2929.9,2928.4,0.00250521]
[1768997504366,0.00512084,2930.1,2928.4,0.00250521]
[1768997504563,1.7634518,2930.1,2928.4,0.00250521]
[1768997504767,1.75833096,2929.8,2928.4,0.00250521]
[1768997504959,0.00512084,2930.1,2928.8,0.00512084]
[1768997506568,1.73685702,2930.1,2928.8,0.00512084]
[1768997507364,1.73173618,2929.6,2928.4,0.00250521]
[1768997507566,0.17087,2929.5,2928.4,0.00250521]
[1768997507763,1.90261618,2929.4,2927.0,1.6875635]
[1768997507962,1.90261618,2929.3,2927.0,1.6875635]
[1768997508570,0.00512084,2928.4,2927.1,40.8]
[1768997508869,0.00856766,2928.4,2927.1,40.8]
[1768997509672,0.00856766,2928.4,2927.5,0.00512084]
[1768997510267,1.73173618,2929.3,2927.5,0.00512084]
[1768997510468,1.90258618,2929.9,2927.5,1.69268434]
[1768997510671,1.90258618,2929.9,2927.5,1.8585435]
[1768997511271,1.90630616,2929.9,2927.5,1.8585435]
[1768997511471,1.90630616,2929.9,2928.4,0.00512084]
[1768997512564,1.90258618,2929.8,2928.4,0.00512084]
[1768997512765,0.00371998,2929.9,2928.4,0.00512084]
[1768997512766,0.00512084,2929.4,2928.4,0.00512084]
[1768997516169,1.73685702,2929.4,2928.4,0.00512084]
[1768997516374,1.90773702,2929.4,2928.4,0.00512084]
[1768997517075,1.90773702,2929.4,2927.3,1.6875635]
[1768997517281,1.73173618,2929.2,2927.1,40.8]
[1768997517480,0.00512084,2929.4,2927.0,0.00405544]
[1768997517481,1.73173618,2928.8,2927.0,0.00405544]
[1768997517679,1.73173618,2928.8,2924.7,3.403]
[1768997517680,1.73770299,2927.9,2924.8,1.72222724]
[1768997517873,1.73770299,2928.0,2925.8,1.72222724]
[1768997518372,1.73770299,2927.6,2925.2,1.72222724]
[1768997518580,1.73770299,2927.4,2926.6,0.00512084]
[1768997518780,0.00284023,2927.6,2926.6,0.00512084]
[1768997518981,0.00315721,2927.6,2926.6,0.00512084]
[1768997519174,1.73770299,2929.8,2926.9,0.17102]
[1768997519376,1.73770299,2929.6,2926.9,1.89324724]
[1768997519582,0.00512084,2928.6,2927.1,0.17101]
[1768997519884,0.00512084,2928.6,2928.0,0.00512084]
[1768997520179,0.00512084,2928.6,2925.6,1.96348814]
[1768997520180,1.74087167,2928.6,2925.6,1.96348814]
[1768997520381,1.73770299,2928.4,2926.0,1.72222724]
[1768997520681,0.00316868,2928.6,2926.4,1.72222724]
[1768997520886,1.74087167,2928.6,2926.4,1.72222724]
[1768997521183,1.74087167,2928.6,2926.4,1.72531624]
[1768997521370,1.74087167,2928.6,2926.7,1.89325724]
[1768997521575,1.91179167,2928.6,2927.2,0.00512084]
[1768997521780,0.00512084,2927.9,2927.2,0.00512084]
[1768997521974,1e-08,2927.9,2927.2,0.00512084]
[1768997522177,0.00316868,2928.6,2927.2,0.00512084]
[1768997522580,1.74087167,2928.6,2927.2,0.00512084]
[1768997523083,1.73770299,2928.4,2926.4,0.003089]
[1768997523281,0.17095,2928.2,2926.4,0.003089]
[1768997523480,0.00316868,2928.6,2926.6,1.72222724]
[1768997523679,0.00316868,2928.6,2927.0,1.89323724]
[1768997523881,0.00316868,2928.6,2927.0,1.72222724]
[1768997524183,1.73770299,2929.6,2927.2,1.72222724]
[1768997524383,1.73770299,2930.2,2927.6,1.72222724]
[1768997524582,1.73770299,2930.2,2928.1,0.17095]
[1768997524882,1.73770299,2930.0,2927.6,1.72222724]
[1768997525084,1.73770299,2929.3,2927.5,0.00512084]
[1768997526681,0.00512084,2928.7,2927.5,0.00512084]
[1768997526877,1.73770299,2928.4,2926.4,0.003089]
[1768997527077,1.73770299,2927.9,2926.4,0.003089]
[1768997527279,0.00432521,2927.9,2926.4,0.003089]
[1768997528087,0.00432521,2927.9,2926.9,0.00512084]
[1768997530486,0.17097,2927.8,2926.4,0.003089]
[1768997530686,2.19594356,2927.7,2924.2,1.72222724]
[1768997530877,0.17102,2926.9,2924.2,1.72222724]
[1768997531080,1.73770299,2926.0,2921.6,9.38517959]
[1768997531290,1.73770299,2926.0,2923.7,1.78171132]
[1768997531497,1.73770299,2926.0,2923.7,1.72222724]
[1768997531690,1.73770299,2926.0,2923.7,1.72499442]
[1768997531988,1.73770299,2926.0,2923.8,1.72222724]
[1768997532191,1.73770299,2926.5,2924.2,1.89339724]
[1768997532486,1.73770299,2927.5,2924.6,1.72222724]
[1768997532693,1.73770299,2927.3,2925.1,1.89335724]
[1768997532990,1.73770299,2927.3,2925.2,1.89334724]
[1768997533184,1.73770299,2927.3,2925.3,0.17111]
[1768997533392,1.73770299,2927.3,2926.0,0.00512084]
[1768997533589,1.73770299,2927.3,2926.0,0.0090635]
[1768997534290,1.73770299,2927.3,2924.6,1.6330882]
[1768997534291,1.73770299,2927.3,2924.7,1.72222724]
[1768997534487,1.74282383,2926.9,2924.1,1.72222724]
[1768997534685,1.73770299,2926.6,2924.1,42.52222724]
[1768997534890,1.90874299,2926.6,2924.1,42.52222724]
[1768997535088,1.73770299,2926.6,2924.3,1.89339724]
[1768997535285,1.73770299,2926.6,2924.5,1.80798814]
[1768997535487,0.00512084,2925.7,2924.5,1.80798814]
[1768997535686,0.00787439,2925.7,2924.5,1.80798814]
[1768997536089,0.00787439,2925.7,2924.3,0.00239223]
[1768997536883,1.67632477,2925.7,2924.3,0.00239223]
[1768997537087,1.67632477,2925.7,2923.3,0.17123]
[1768997538193,1.67632477,2925.7,2923.3,0.17477869]
[1768997538689,1.67632477,2925.7,2923.5,1.80798814]
[1768997538888,1.67632477,2925.7,2923.8,0.1712]
[1768997539093,0.00787439,2925.7,2924.2,0.17118]
[1768997539288,0.00787439,2925.7,2923.6,6.22288826]
[1768997539592,0.00787439,2925.7,2924.4,0.17117]
[1768997540193,0.00787439,2925.7,2923.7,0.1712]
[1768997540589,0.00787439,2925.7,2924.4,0.00512084]
[1768997540993,1.66845038,2926.9,2924.4,1.81310898]
[1768997541195,1.66845038,2926.9,2924.4,1.80798814]
[1768997541503,1.66845038,2927.9,2925.0,1.80798814]
[1768997541995,1.67239646,2927.9,2925.2,1.80798814]
[1768997542196,1.67239646,2927.9,2925.9,0.17108]
[1768997542493,1.67239646,2927.9,2926.3,0.00512084]
[1768997542695,0.00512084,2927.2,2926.3,0.00512084]
[1768997544386,0.00394608,2927.9,2926.6,0.17104]
[1768997544798,0.00394608,2927.9,2926.7,0.17103]
[1768997546299,0.00394608,2927.9,2926.8,0.17103]
[1768997546698,1.83935038,2929.1,2926.9,0.17102]
[1768997547097,1.83935038,2929.1,2927.0,40.8]
[1768997547297,0.00512084,2928.3,2927.0,40.8]
[1768997547606,0.00512084,2928.3,2927.0,40.97101]
[1768997547796,0.00828029,2928.3,2927.0,40.8]
[1768997547995,1.67673067,2928.3,2926.3,0.00512084]
[1768997548500,1.84767067,2928.3,2926.4,40.8]
[1768997548800,1.67673067,2928.3,2926.3,0.00512084]
[1768997549593,1.66845038,2928.1,2926.3,0.00512084]
[1768997550196,1.83940038,2927.9,2926.3,0.00512084]
[1768997550598,1.66845038,2927.9,2926.3,0.00512084]
[1768997550803,0.00828029,2928.3,2926.3,0.00512084]
[1768997551700,0.00828029,2928.3,2926.3,1.81310898]
[1768997552207,0.00828029,2928.3,2926.5,0.17103]
[1768997552999,0.00828029,2928.3,2926.7,1.80798814]
[1768997553306,0.00828029,2928.3,2927.0,0.171]
[1768997553505,0.00828029,2928.3,2926.7,1.80798814]
[1768997554111,0.00828029,2928.3,2927.0,0.17099]
[1768997554309,0.00828029,2928.3,2926.7,1.80798814]
[1768997554910,0.17085,2929.5,2926.9,1.80798814]
[1768997555206,1.83930038,2929.5,2926.9,1.80798814]
[1768997555407,1.83930038,2929.5,2927.0,42.60798814]
[1768997555709,1.83930038,2929.5,2927.1,1.80798814]
[1768997555897,1.67261843,2929.5,2927.5,0.17097]
[1768997556101,1.67261843,2929.5,2928.0,0.00512084]
[1768997556306,1.67261843,2929.5,2928.0,0.00752813]
[1768997556501,0.00416805,2929.5,2928.0,0.17846813]
[1768997556806,0.00512084,2929.0,2928.0,0.17846813]
[1768997557800,0.00512084,2929.0,2928.2,0.17093]
[1768997558001,0.00416805,2929.5,2928.4,0.17091]
[1768997558201,0.00416805,2929.5,2928.0,1.98645627]
[1768997559203,0.00416805,2929.5,2928.2,1.97890814]
[1768997559409,0.00416805,2929.5,2928.2,1.80798814]
[1768997559611,1.66845038,2930.8,2928.6,1.80798814]
[1768997560107,1.66845038,2930.0,2928.0,0.00752813]
[1768997560311,1.66845038,2930.0,2928.0,0.00240729]
[1768997560611,1.67249232,2930.0,2928.7,0.00512084]
[1768997560801,1.83929038,2929.7,2928.0,0.00240729]
[1768997561518,1.66845038,2929.2,2927.0,40.971]
[1768997561907,1.84449122,2928.4,2925.9,1.80798814]
[1768997562411,1.84449122,2928.4,2926.0,40.8]
[1768997562610,0.17092,2928.3,2926.0,40.80278722]
[1768997562806,1.66845038,2928.2,2926.0,40.80278722]
[1768997563010,1.66845038,2927.6,2926.0,0.00278722]
[1768997563213,1.66845038,2927.2,2924.7,1.80798814]
[1768997563509,1.66845038,2926.9,2924.4,40.8]
[1768997563811,1.66845038,2926.7,2924.4,40.8]
[1768997563999,1.67357122,2925.8,2924.4,40.8]
[1768997564206,1.67357122,2925.8,2924.4,0.00277866]
[1768997564612,0.00512084,2925.8,2924.4,0.00277866]
[1768997564809,0.00512084,2925.8,2924.4,1.8107668]
[1768997565311,0.00512084,2925.8,2924.8,0.00512084]
[1768997569315,0.00512084,2925.8,2924.8,1.87236869]
[1768997570317,0.00512084,2925.8,2924.8,0.00512084]
[1768997570709,0.17108,2925.6,2924.4,0.00277866]
[1768997571413,0.17108,2925.6,2923.0,1.86724785]
[1768997571414,0.1711,2925.3,2923.0,1.86724785]
[1768997571813,0.1711,2925.3,2923.9,0.0051297]
[1768997572408,0.1711,2925.3,2922.2,0.0595207]
[1768997572409,1.80543255,2924.8,2922.1,0.17128]
[1768997572609,1.80543255,2924.8,2919.3,9.82096502]
[1768997572610,1.80543255,2924.8,2921.6,1.86724785]
[1768997572808,0.00371303,2925.3,2921.6,1.86724785]
[1768997572809,1.80543255,2924.2,2921.6,1.86724785]
[1768997573112,1.80543255,2924.2,2921.7,1.86724785]
[1768997573314,1.80543255,2924.2,2921.1,1.86724785]
[1768997573612,1.18036547,2925.0,2921.1,0.00433518]
[1768997573613,0.0051297,2922.9,2921.1,0.00433518]
[1768997573817,0.00862566,2922.9,2921.1,0.00433518]
[1768997574207,1.77814705,2922.9,2921.1,0.00433518]
[1768997574518,1.76952139,2922.3,2918.8,2.03872785]
[1768997574724,1.76952139,2922.3,2919.3,42.91071417]
[1768997575011,1.76609858,2921.7,2919.3,0.24346632]
[1768997575207,0.17126,2922.6,2919.3,2.11071417]
[1768997575208,1.76872586,2922.4,2919.3,2.11071417]
[1768997575412,1.76872586,2922.4,2919.5,2.03867785]
[1768997575722,0.00349596,2922.9,2920.5,1.86724785]
[1768997576312,1.746234,2922.9,2919.5,1.86724785]
[1768997576507,1.746234,2922.9,2919.8,1.86724785]
[1768997576814,1.74273804,2922.7,2919.8,1.86724785]
[1768997577416,0.0051297,2921.5,2919.8,1.86724785]
[1768997578021,1.71931666,2922.8,2920.4,1.79826261]
[1768997578318,0.00349596,2922.9,2920.4,1.79826261]
[1768997578522,0.17126,2922.6,2920.0,1.79826261]
[1768997578723,1.72522783,2922.9,2920.0,1.79826261]
[1768997579309,0.0051297,2921.7,2920.0,1.79826261]
[1768997579508,0.0051297,2921.7,2920.2,1.79826261]
[1768997579712,0.0051297,2921.7,2920.6,0.0051297]
[1768997581011,1.92517651,2921.7,2919.6,1.79826261]
[1768997581216,1.92007681,2921.2,2919.3,0.24586038]
[1768997581515,1.92007681,2921.2,2916.8,1.44215087]
[1768997581516,1.74873681,2920.5,2918.3,1.79826261]
[1768997581718,1.74873681,2921.6,2918.7,0.12541453]
[1768997581913,1.74873681,2921.6,2917.2,0.27500627]
[1768997581914,1.74873681,2921.6,2918.3,4.53424221]
[1768997582123,1.74873681,2922.7,2919.5,0.17144]
[1768997582418,1.73580492,2924.8,2917.3,8.49914025]
[1768997582419,1.74873681,2923.3,2920.3,0.17139]
[1768997582618,1.7512415,2923.3,2920.3,0.00344516]
[1768997582812,0.00250469,2923.3,2921.2,0.17133]
[1768997583017,0.00250469,2923.3,2920.4,4.43454]
[1768997583018,1.7512415,2923.3,2920.4,8.00042474]
[1768997583218,1.74873681,2923.0,2920.3,0.00344516]
[1768997583418,0.00513865,2922.1,2920.5,0.17138]
[1768997583720,0.00250469,2923.3,2921.2,1.79826261]
[1768997583919,0.00250469,2923.3,2921.4,1.79826261]
[1768997584125,0.00250469,2923.3,2921.4,1.96959261]
[1768997584824,0.00513865,2922.6,2921.4,1.96959261]
[1768997585025,0.00513865,2922.6,2920.8,1.79826261]
[1768997585621,1.75387546,2922.6,2920.3,0.00344516]
[1768997586029,1.75387546,2922.6,2920.3,1.80170777]
[1768997586227,1.75387546,2922.6,2920.3,0.00344516]
[1768997586426,1.92004681,2921.7,2920.3,0.00344516]
[1768997586827,1.74873681,2921.2,2918.6,1.79826261]
[1768997587022,1.74873681,2920.7,2918.0,1.79826261]
[1768997587228,1.74873681,2920.7,2918.1,42.59826261]
[1768997587527,0.00513865,2920.2,2918.2,1.79826261]
[1768997587927,0.00932444,2920.2,2918.2,1.8023917]
[1768997588424,0.00932444,2920.2,2918.4,1.79826261]
[1768997588620,0.00932444,2920.2,2918.3,4.41048796]
[1768997588820,0.00932444,2920.2,2919.0,0.00513865]
[1768997589621,1.74873681,2921.6,2919.0,1.80340126]
[1768997589822,1.74873681,2921.6,2919.0,1.96972261]
[1768997590527,1.74873681,2921.6,2919.0,1.79826261]
[1768997590724,0.00513865,2920.6,2919.0,1.79826261]
[1768997591124,1.75387546,2920.6,2918.3,1.79826261]
[1768997592039,1.75387546,2920.6,2918.3,1.96977261]
[1768997592227,0.00513865,2920.6,2918.5,1.96975261]
[1768997592432,0.00513865,2920.6,2918.7,1.79826261]
[1768997592633,0.00513865,2920.6,2918.7,1.96974261]
[1768997593034,0.00513865,2920.6,2918.7,1.79826261]
[1768997593739,0.00513865,2920.6,2918.2,0.00412909]
[1768997593740,0.00513865,2920.6,2919.0,1.96972261]
[1768997593940,1.72691056,2921.8,2919.4,1.79826261]
[1768997594239,1.72691056,2921.8,2919.6,1.79826261]
[1768997595039,1.73118201,2921.8,2919.6,1.79826261]
[1768997595232,0.00427145,2921.8,2919.6,1.96969261]
[1768997595434,0.17134,2921.2,2918.7,1.87158713]
[1768997595633,0.17134,2921.2,2918.7,2.04306713]
[1768997595838,0.00427145,2921.8,2919.0,0.17146]
[1768997596033,0.00427145,2921.8,2919.7,0.00513865]
[1768997596239,0.00427145,2921.8,2919.7,1.87672578]
[1768997596836,0.00427145,2921.8,2920.0,2.04299713]
[1768997597143,0.00513865,2921.2,2920.1,2.04298713]
[1768997597341,0.00427145,2921.8,2920.1,2.04298713]
[1768997598837,0.00427145,2921.8,2919.7,0.00513865]
[1768997598838,1.86455891,2921.8,2919.7,0.00513865]
[1768997599036,0.00513865,2921.0,2918.3,1.87158713]
[1768997599232,0.17136,2920.8,2918.3,1.87158713]
[1768997599441,0.00513865,2921.0,2918.5,2.04307713]
[1768997599836,0.00513865,2921.0,2918.9,1.87158713]
[1768997600239,0.00513865,2921.0,2919.7,0.00513865]
[1768997600438,0.17138,2920.5,2918.4,40.8]
[1768997600644,0.17648865,2921.0,2918.5,0.17149]
[1768997600936,0.17136,2920.9,2918.5,0.17149]
[1768997601136,2.03164746,2920.8,2918.5,0.17149]
[1768997601336,0.00513865,2921.0,2919.3,1.87158713]
[1768997601545,1.73580492,2922.5,2920.0,1.87158713]
[1768997601546,1.86028746,2922.5,2920.0,1.87158713]
[1768997601736,1.86028746,2922.5,2920.1,42.84298713]
[1768997602041,1.86028746,2921.6,2919.3,0.17145]
[1768997602242,0.86028746,2921.6,2919.3,0.17145]
[1768997602541,0.86028746,2921.6,2919.4,40.8]
[1768997602741,0.86028746,2921.6,2919.4,40.97144]
[1768997603046,0.86028746,2921.6,2920.2,0.00513865]
[1768997604544,0.1713,2921.9,2920.2,0.00513865]
[1768997605946,1.13237601,2921.2,2919.0,2.04304713]
[1768997606345,0.17132,2921.6,2919.0,2.04304713]
[1768997606641,0.17133,2921.4,2919.0,2.04304713]
[1768997606835,1.0111831,2921.3,2919.0,2.04304713]
[1768997607040,0.00513865,2920.5,2919.4,2.04302713]
[1768997607236,0.00513865,2920.5,2919.9,0.00513865]
[1768997609440,1.00555253,2920.3,2917.7,1.87158713]
[1768997609637,1.0110878,2920.2,2918.0,0.17152]
[1768997609841,0.17144,2919.5,2917.1,1.87158713]
[1768997610048,0.17144,2919.4,2917.1,1.87158713]
[1768997610438,1.00827527,2919.5,2917.3,2.04314713]
[1768997610642,1.00827527,2919.5,2916.5,2.04319713]
[1768997610643,0.00513865,2918.5,2916.5,2.04319713]
[1768997610843,0.00513865,2918.5,2916.8,1.87158713]
[1768997611039,0.00513865,2918.5,2916.8,1.87535887]
[1768997611448,0.00513865,2918.5,2917.4,0.00513865]
[1768997611753,0.00513865,2918.5,2917.4,1.87672578]
[1768997612142,0.00513865,2918.5,2917.4,0.00513865]
[1768997612648,0.00513865,2918.5,2916.8,0.00377174]
[1768997612852,0.95497147,2918.0,2915.3,0.27254189]
[1768997613051,0.00513865,2918.5,2916.3,1.87158713]
[1768997613260,0.96388611,2919.4,2916.7,1.87158713]
[1768997613553,0.96388611,2919.4,2916.7,0.1716]
[1768997613752,0.96388611,2919.1,2916.3,1.87158713]
[1768997613950,0.00513865,2918.3,2916.3,1.87409693]
[1768997614150,0.00513865,2918.3,2916.4,40.8]
[1768997614350,0.00513865,2918.3,2916.5,1.87158713]
[1768997615647,0.00513865,2918.3,2916.6,1.87158713]
[1768997615951,0.94559759,2918.3,2916.3,0.0025098]
[1768997616355,0.00513865,2918.3,2916.8,1.87158713]
[1768997616760,0.00513865,2918.3,2917.0,1.87158713]
[1768997617257,0.00513865,2918.3,2916.4,2.04320713]
[1768997617463,0.00513865,2918.3,2916.4,1.87158713]
[1768997619260,0.00513865,2918.3,2916.7,1.87158713]
[1768997619457,0.00272274,2919.5,2917.0,2.04316713]
[1768997619650,0.00272274,2919.5,2917.3,1.87158713]
[1768997619856,1.00012834,2919.5,2917.3,1.87158713]
[1768997620161,0.17148,2918.8,2917.2,0.00513865]
[1768997620662,0.00513865,2918.3,2917.2,0.00513865]